[Event "3rd FIDE WCCC Rapid U12 2019"]
[Site "Minsk"]
[Date "2019.08.16"]
[Round "2.3"]
[White "Sadekov, Maksim"]
[Black "Mochalov, Dmitriy"]
[Result "0-1"]
[ECO "E73"]
[WhiteElo "1558"]
[BlackElo "1852"]
[Annotator "NA"]
[PlyCount "72"]
[EventDate "2019.08.16"]
[EventType "swiss"]
[EventCountry "BLR"]
[SourceTitle "playchess.com"]
[Source "ChessBase"]
[SourceQuality "1"]
[TimeControl "600+5"]

1. d4 {[%emt 0:00:00]} Nf6 {[%emt 0:00:00]} 2. c4 {[%emt 0:00:00]} g6 {[%emt 0:00:00]} 3. Nc3 {[%emt 0:00:00]} Bg7 {[%emt 0:00:00]} 4. e4 {[%emt 0:00:00]} d6 {[%emt 0:00:00]} 5. Bg5 {[%emt 0:00:02]} O-O {[%emt 0:00:02]} 6. Be2 {[%emt 0:00:01]} Nbd7 {[%emt 0:00:12]} 7. Qd2 {[%emt 0:00:30]} e5 {[%emt 0:00:02]} 8. d5 {[%emt 0:00:02]} Nc5 {[%emt 0:00:01]} 9. f3 {[%emt 0:00:06]} a5 {[%emt 0:00:12]} 10. g4 {[%emt 0:00:07]} h6 {[%emt 0:00:58]} 11. Bxh6 {[%emt 0:00:21]} Nfxe4 {[%emt 0:00:01]} 12. Bxg7 {[%emt 0:00:25]} Nxd2 {[%emt 0:00:02]} 13. Bxf8 {[%emt 0:00:02]} Nxf3+ {[%emt 0:00:47]} 14. Nxf3 {[%emt 0:00:06]} Qxf8 {[%emt 0:00:01]} 15. Nd2 {[%emt 0:00:48]} Qh6 {[%emt 0:00:06]} 16. O-O-O {[%emt 0:00:05]} a4 {[%emt 0:00:05]} 17. h4 {[%emt 0:00:18]} Qe3 {[%emt 0:00:02]} 18. Kc2 {[%emt 0:00:55]} a3 {[%emt 0:00:14]} 19. b3 {[%emt 0:00:40]} Bxg4 {[%emt 0:00:02]} 20. Nf1 {[%emt 0:01:08]} Bf5+ {[%emt 0:00:07]} 21. Bd3 {[%emt 0:00:36]} Bxd3+ {[%emt 0:00:01]} 22. Rxd3 {[%emt 0:00:04]} Qxd3+ {[%emt 0:00:01]} 23. Kc1 {[%emt 0:00:03]} Qxc3+ {[%emt 0:00:01]} 24. Kd1 {[%emt 0:00:01]} Qa1+ {[%emt 0:00:09]} 25. Ke2 {[%emt 0:00:03]} Qxa2+ {[%emt 0:00:01]} 26. Kf3 {[%emt 0:00:01]} Qxb3+ {[%emt 0:00:02]} 27. Kg4 {[%emt 0:00:04]} Qxc4+ {[%emt 0:00:01]} 28. Kg3 {[%emt 0:00:07]} Ne4+ {[%emt 0:00:01]} 29. Kf3 {[%emt 0:00:03]} Qxf1+ {[%emt 0:00:02]} 30. Rxf1 {[%emt 0:00:10]} Nd2+ {[%emt 0:00:00]} 31. Ke2 {[%emt 0:00:13]} Nxf1 {[%emt 0:00:01]} 32. Kxf1 {[%emt 0:00:02]} a2 {[%emt 0:00:01]} 33. Kf2 {[%emt 0:00:02]} a1=Q {[%emt 0:00:02]} 34. h5 {[%emt 0:00:03]} Ra3 {[%emt 0:00:03]} 35. hxg6 {[%emt 0:00:04]} Qb2+ {[%emt 0:00:01]} 36. Ke1 {[%emt 0:00:01]} Ra1# {[%emt 0:00:00]} 0-1

[Event "3rd FIDE WCCC Rapid U12 2019"]
[Site "Minsk"]
[Date "2019.08.16"]
[Round "2.4"]
[White "Israfilov, Ali"]
[Black "Maranin, Sergey"]
[Result "1-0"]
[ECO "E91"]
[WhiteElo "1857"]
[BlackElo "1500"]
[Annotator "NA"]
[PlyCount "53"]
[EventDate "2019.08.16"]
[EventType "swiss"]
[EventCountry "BLR"]
[SourceTitle "playchess.com"]
[Source "ChessBase"]
[SourceQuality "1"]
[TimeControl "600+5"]

1. d4 {[%emt 0:00:00]} Nf6 {[%emt 0:00:00]} 2. c4 {[%emt 0:00:00]} d6 {[%emt 0:00:00]} 3. Nc3 {[%emt 0:00:00]} g6 {[%emt 0:00:00]} 4. e4 {[%emt 0:00:00]} Bg7 {[%emt 0:00:00]} 5. Nf3 {[%emt 0:00:01]} O-O {[%emt 0:00:02]} 6. Be2 {[%emt 0:00:02]} Nbd7 {[%emt 0:00:03]} 7. O-O {[%emt 0:00:05]} e5 {[%emt 0:00:06]} 8. Qc2 {[%emt 0:00:04]} c6 {[%emt 0:00:26]} 9. Rd1 {[%emt 0:00:03]} Qc7 {[%emt 0:00:04]} 10. h3 {[%emt 0:00:10]} Re8 {[%emt 0:01:48]} 11. d5 {[%emt 0:00:56]} c5 $16 {[%emt 0:00:21]} 12. a3 {[%emt 0:00:09]} a6 {[%emt 0:00:18]} 13. Be3 {[%emt 0:00:09]} Nh5 {[%emt 0:01:07]} 14. b4 {[%emt 0:00:16]} b6 {[%emt 0:01:00]} 15. Nd2 {[%emt 0:01:29]} Nf4 {[%emt 0:00:30]} 16. Bf1 {[%emt 0:00:03]} Nf8 {[%emt 0:00:31]} 17. bxc5 {[%emt 0:00:28]} bxc5 {[%emt 0:00:08]} 18. Rab1 {[%emt 0:00:06]} Bd7 {[%emt 0:00:52]} 19. Rb2 {[%emt 0:00:40]} Rab8 {[%emt 0:00:21]} 20. Rdb1 {[%emt 0:00:03]} Rxb2 {[%emt 0:02:39]} 21. Qxb2 {[%emt 0:00:04]} Qa5 {[%emt 0:00:00]} 22. Nb3 {[%emt 0:00:35]} Qc7 {[%emt 0:00:26]} 23. Nc1 {[%emt 0:00:16]} Qa5 {[%emt 0:00:20]} 24. Bd2 {[%emt 0:00:01]} Ba4 {[%emt 0:00:43]} 25. Qb6 {[%emt 0:00:23]} Qxb6 {[%emt 0:00:08]} 26. Rxb6 {[%emt 0:00:01]} Bc2 {[%emt 0:00:03]} 27. Rb2 {[%emt 0:00:06]} 1-0

[Event "3rd FIDE WCCC Rapid U12 2019"]
[Site "Minsk"]
[Date "2019.08.16"]
[Round "2.5"]
[White "Kurchenko, Egor"]
[Black "Tobak, Mikhail"]
[Result "1-0"]
[ECO "B03"]
[WhiteElo "1850"]
[BlackElo "1998"]
[Annotator "NA"]
[PlyCount "115"]
[EventDate "2019.08.16"]
[EventType "swiss"]
[EventCountry "BLR"]
[SourceTitle "playchess.com"]
[Source "ChessBase"]
[SourceQuality "1"]
[TimeControl "600+5"]

1. e4 {[%emt 0:00:00]} Nf6 {[%emt 0:00:00]} 2. e5 {[%emt 0:00:00]} Nd5 {[%emt 0:00:00]} 3. d4 d6 4. exd6 {[%emt 0:00:02]} cxd6 {[%emt 0:00:00]} 5. Nf3 {[%emt 0:00:03]} g6 {[%emt 0:00:01]} 6. c3 {[%emt 0:00:09]} Bg7 {[%emt 0:00:03]} 7. Bc4 {[%emt 0:00:11]} Nb6 {[%emt 0:00:02]} 8. Bb3 {[%emt 0:00:01]} O-O {[%emt 0:00:03]} 9. O-O {[%emt 0:00:02]} Nc6 {[%emt 0:00:19]} 10. Re1 {[%emt 0:00:19]} Bf5 {[%emt 0:00:30] B04: Alekhine's Defence: 4 Nf3} 11. Bg5 {[%emt 0:00:31]} (11. Na3 Qd7 12. Bc2 Bxc2 13. Nxc2 Rac8 14. Ne3 e5 15. dxe5 dxe5 16. Qxd7 Nxd7 17. Nc4 f5 18. Nd6 {1-0 (50) Grischuk,A (2747)-Bortnyk,O (2579) ICC INT 2016}) 11... h6 {[%emt 0:00:05]} 12. Be3 {[%emt 0:00:45]} Qc7 $146 {[%emt 0:00:31]} ({Predecessor:} 12... Na5 13. Bc2 Bxc2 14. Qxc2 Nac4 15. Bc1 Rc8 16. Nbd2 e5 17. Nxc4 Nxc4 18. dxe5 dxe5 {1-0 (48) Kosteniuk,A (2552)-Fier,A (2573) Bastia 2017}) 13. Nh4 {[%emt 0:00:15]} Bxb1 {[%emt 0:00:13]} 14. Rxb1 {[%emt 0:00:09]} d5 {[%emt 0:00:03]} 15. Qd2 {[%emt 0:00:25]} Kh7 {[%emt 0:00:08]} 16. Bc2 {[%emt 0:00:01]} e6 {[%emt 0:00:40]} 17. Qd3 {[%emt 0:01:31]} f5 {[%emt 0:00:02]} 18. Bd2 {[%emt 0:00:44]} Qf7 {[%emt 0:00:07]} 19. Nf3 {[%emt 0:00:34]} Nc4 {[%emt 0:00:01]} 20. Bf4 {[%emt 0:00:13]} Kh8 {[%emt 0:00:45]} 21. h4 {[%emt 0:00:18]} Rad8 {[%emt 0:00:14]} 22. h5 {[%emt 0:01:37]} Rde8 {[%emt 0:01:06]} 23. hxg6 {[%emt 0:00:10]} Qxg6 {[%emt 0:00:01]} 24. Nh4 {[%emt 0:00:26]} Qg4 {[%emt 0:00:20]} 25. g3 {[%emt 0:00:03]} Rg8 $18 {[%emt 0:01:05]} (25... Bf6) 26. Bd1 {[%emt 0:00:12]} Qh3 {[%emt 0:00:01]} 27. Bh5 {[%emt 0:00:12]} Bf6 {[%emt 0:01:52]} 28. Bxe8 {[%emt 0:00:31]} Rxe8 {[%emt 0:00:22]} 29. Nxf5 {[%emt 0:00:10]} e5 30. Nxh6 {[%emt 0:00:39]} e4 {[%emt 0:01:02]} 31. Qe2 {[%emt 0:00:16]} Bxd4 {[%emt 0:00:33]} 32. Nf7+ {[%emt 0:00:25]} Kg7 {[%emt 0:00:20]} 33. Ng5 {[%emt 0:00:02]} Qh6 {[%emt 0:01:03]} 34. Nxe4 {[%emt 0:00:11]} Qg6 {[%emt 0:00:26]} 35. cxd4 {[%emt 0:00:29]} Nxd4 {[%emt 0:00:35]} 36. Qd3 {[%emt 0:00:13]} Rxe4 {[%emt 0:00:11]} 37. Rxe4 {[%emt 0:00:11]} Qxe4 {[%emt 0:00:04]} 38. Qxe4 {[%emt 0:00:06]} dxe4 {[%emt 0:00:01]} 39. b3 {[%emt 0:00:17]} Nf3+ {[%emt 0:00:07]} 40. Kh1 {[%emt 0:00:10]} Nb6 {[%emt 0:00:01]} 41. Rd1 {[%emt 0:00:11]} Kf6 {[%emt 0:00:04]} 42. Bb8 {[%emt 0:00:06]} Kf5 {[%emt 0:00:10]} 43. Bxa7 {[%emt 0:00:10]} Nc8 {[%emt 0:00:01]} 44. Bc5 {[%emt 0:00:05]} b6 {[%emt 0:00:02]} 45. Rd8 {[%emt 0:00:08]} Na7 {[%emt 0:00:11]} 46. Bxb6 {[%emt 0:00:04]} Nc6 {[%emt 0:00:01]} 47. Rf8+ {[%emt 0:00:04]} Ke6 {[%emt 0:00:00]} 48. Rxf3 {[%emt 0:00:18]} exf3 {[%emt 0:00:01]} 49. Kh2 {[%emt 0:00:03]} Kd5 {[%emt 0:00:06]} 50. g4 {[%emt 0:00:06]} Ke4 {[%emt 0:00:03]} 51. Kg3 {[%emt 0:00:03]} Nb4 {[%emt 0:00:02]} 52. a4 {[%emt 0:00:08]} Nd5 {[%emt 0:00:01]} 53. Bc5 {[%emt 0:00:06]} Nc3 {[%emt 0:00:03]} 54. a5 {[%emt 0:00:06]} Ne2+ {[%emt 0:00:01]} 55. Kh2 {[%emt 0:00:05]} Kd5 {[%emt 0:00:01]} 56. a6 {[%emt 0:00:08]} Kc6 {[%emt 0:00:01]} 57. a7 {[%emt 0:00:03]} Kb7 {[%emt 0:00:01]} 58. g5 {[%emt 0:00:04]} 1-0

[Event "3rd FIDE WCCC Rapid U12 2019"]
[Site "Minsk"]
[Date "2019.08.16"]
[Round "2.6"]
[White "Navumenka, Mikhei"]
[Black "Kotelnikov, Konstantin"]
[Result "1/2-1/2"]
[ECO "D78"]
[WhiteElo "2148"]
[BlackElo "1629"]
[Annotator "ChessBase"]
[PlyCount "91"]
[EventDate "2019.08.16"]
[EventType "swiss"]
[EventCountry "BLR"]
[SourceTitle "playchess.com"]
[Source "ChessBase"]
[SourceQuality "1"]
[TimeControl "600+5"]

1. d4 {[%emt 0:00:00]} Nf6 {[%emt 0:00:00]} 2. Nf3 {[%emt 0:00:00]} g6 {[%emt 0:00:00]} 3. c4 {[%emt 0:00:01]} Bg7 {[%emt 0:00:00]} 4. g3 {[%emt 0:00:01]} c6 {[%emt 0:00:00]} 5. Bg2 {[%emt 0:00:06]} d5 {[%emt 0:00:00]} 6. O-O {[%emt 0:00:02]} O-O {[%emt 0:00:03]} 7. Nbd2 {[%emt 0:00:24]} Bf5 {[%emt 0:00:46]} 8. Qb3 {[%emt 0:00:15]} Qb6 9. Qxb6 {[%emt 0:01:52]} axb6 {[%emt 0:01:13]} 10. b3 {[%emt 0:00:25]} Ne4 {[%emt 0:00:21]} 11. Bb2 {[%emt 0:00:07]} Nd7 {[%emt 0:00:40]} 12. Rfd1 {[%emt 0:00:20]} Ndf6 {[%emt 0:01:08]} 13. Ne5 {[%emt 0:00:42]} Nxd2 {[%emt 0:02:04]} 14. Rxd2 {[%emt 0:00:02]} Ne4 {[%emt 0:00:02]} 15. Rdd1 {[%emt 0:00:59]} h5 {[%emt 0:01:28]} 16. a4 {[%emt 0:01:40]} Rfd8 {[%emt 0:01:21]} 17. Rac1 {[%emt 0:00:14]} Rac8 {[%emt 0:00:20]} 18. e3 {[%emt 0:00:15]} e6 {[%emt 0:00:36]} 19. h3 {[%emt 0:00:09]} f6 {[%emt 0:00:34]} 20. Nd3 {[%emt 0:00:17]} g5 {[%emt 0:00:01]} 21. c5 {[%emt 0:01:40]} bxc5 {[%emt 0:00:11]} 22. Bxe4 {[%emt 0:00:35]} dxe4 {[%emt 0:00:20]} 23. Nxc5 {[%emt 0:00:05]} b6 {[%emt 0:00:01]} 24. Na6 {[%emt 0:00:24]} Bxh3 {[%emt 0:00:02]} 25. Ba3 {[%emt 0:00:10]} Bf8 26. Bxf8 {[%emt 0:00:07]} Kxf8 {[%emt 0:00:07]} 27. Rc4 {[%emt 0:00:32]} Ra8 {[%emt 0:00:07]} 28. Nb4 {[%emt 0:00:03]} c5 {[%emt 0:00:01]} 29. Nc2 {[%emt 0:00:07]} Rac8 {[%emt 0:00:17]} 30. Rc1 {[%emt 0:00:06]} Bf5 31. Na3 {[%emt 0:00:08]} e5 {[%emt 0:00:18]} 32. Nb5 {[%emt 0:00:16]} cxd4 {[%emt 0:00:07]} 33. Rxc8 {[%emt 0:00:03]} Rxc8 {[%emt 0:00:01]} 34. Rxc8+ {[%emt 0:00:06]} Bxc8 {[%emt 0:00:01]} 35. exd4 {[%emt 0:00:00]} exd4 {[%emt 0:00:02]} 36. Nxd4 {[%emt 0:00:02]} Ke7 {[%emt 0:00:04]} 37. f4 {[%emt 0:00:20]} exf3 38. Nxf3 {[%emt 0:00:01]} Kd6 {[%emt 0:00:04]} 39. Nd2 {[%emt 0:00:03]} Kc5 {[%emt 0:00:02]} 40. Ne4+ {[%emt 0:00:17]} Kb4 {[%emt 0:00:00]} 41. Nxf6 {[%emt 0:00:02]} Kxb3 {[%emt 0:00:01]} 42. Nd5 {[%emt 0:00:01]} Be6 {[%emt 0:00:24]} 43. Nxb6 {[%emt 0:00:02]} Kb4 {[%emt 0:00:02]} 44. Kf2 {[%emt 0:00:10]} Ka5 {[%emt 0:00:01]} 45. Na8 {[%emt 0:00:05]} Kxa4 {[%emt 0:00:06]} 46. Nc7 {[%emt 0:00:01]} 1/2-1/2

[Event "3rd FIDE WCCC Rapid U12 2019"]
[Site "Minsk"]
[Date "2019.08.16"]
[Round "3.1"]
[White "Cherniaiev, Tykhon"]
[Black "Mikko, Rondo"]
[Result "1-0"]
[ECO "C54"]
[WhiteElo "2112"]
[BlackElo "1514"]
[Annotator "ChessBase"]
[PlyCount "69"]
[EventDate "2019.08.16"]
[EventType "swiss"]
[EventCountry "BLR"]
[SourceTitle "playchess.com"]
[Source "ChessBase"]
[SourceQuality "1"]
[TimeControl "600+5"]

1. e4 {[%emt 0:00:00]} e5 {[%emt 0:00:00]} 2. Nf3 {[%emt 0:00:00]} Nc6 {[%emt 0:00:00]} 3. Bc4 {[%emt 0:00:07]} Bc5 {[%emt 0:00:15]} 4. c3 {[%emt 0:00:04]} Nf6 {[%emt 0:01:13]} 5. d3 {[%emt 0:00:03]} O-O {[%emt 0:00:08]} 6. O-O {[%emt 0:00:04]} d6 {[%emt 0:00:18]} 7. Bg5 {[%emt 0:00:12]} h6 {[%emt 0:00:09]} 8. Bh4 {[%emt 0:00:04]} Bg4 {[%emt 0:00:43]} 9. Nbd2 {[%emt 0:00:07]} g5 {[%emt 0:00:57]} 10. Bg3 {[%emt 0:00:07]} Nh5 {[%emt 0:00:16]} 11. Nb3 {[%emt 0:01:30]} Nxg3 {[%emt 0:00:16]} 12. hxg3 {[%emt 0:00:19]} Bb6 {[%emt 0:00:26]} 13. d4 {[%emt 0:00:23]} Qf6 {[%emt 0:00:16]} 14. dxe5 {[%emt 0:00:34]} Nxe5 {[%emt 0:00:23]} 15. Be2 {[%emt 0:00:02]} Nxf3+ {[%emt 0:00:44]} 16. Bxf3 {[%emt 0:00:03]} Bxf3 {[%emt 0:00:05]} 17. Qxf3 {[%emt 0:00:10]} Qxf3 {[%emt 0:00:03]} 18. gxf3 {[%emt 0:00:02]} Kg7 {[%emt 0:00:03]} 19. Kg2 {[%emt 0:00:08]} Rae8 {[%emt 0:00:17]} 20. g4 {[%emt 0:00:13]} Rh8 {[%emt 0:01:24]} 21. Rh1 {[%emt 0:00:13]} d5 {[%emt 0:00:33]} 22. Nd2 {[%emt 0:00:12]} d4 {[%emt 0:00:16]} 23. Nf1 {[%emt 0:01:57]} dxc3 {[%emt 0:00:49]} 24. bxc3 {[%emt 0:00:02]} Rd8 {[%emt 0:00:10]} 25. a4 {[%emt 0:00:40]} Bc5 {[%emt 0:00:32]} 26. Rh5 {[%emt 0:00:27]} Rd3 {[%emt 0:00:33]} 27. Rc1 {[%emt 0:01:10]} a5 {[%emt 0:00:21]} 28. Rc2 {[%emt 0:00:22]} b6 {[%emt 0:00:41]} 29. Ng3 {[%emt 0:00:04]} Kf6 {[%emt 0:00:18]} 30. Nf5 {[%emt 0:00:16]} Bf8 {[%emt 0:00:01]} 31. Kf1 {[%emt 0:00:43]} Kg6 {[%emt 0:00:13]} 32. Ke2 {[%emt 0:00:04]} Rd7 {[%emt 0:00:05]} 33. Rc1 {[%emt 0:00:16]} Bg7 {[%emt 0:00:09]} 34. Rch1 {[%emt 0:00:07]} f6 {[%emt 0:00:03]} 35. Ke3 {[%emt 0:00:20]} 1-0

[Event "3rd FIDE WCCC Rapid U12 2019"]
[Site "Minsk"]
[Date "2019.08.16"]
[Round "3.3"]
[White "Mochalov, Dmitriy"]
[Black "Krivenko, Dmitry"]
[Result "0-1"]
[ECO "B01"]
[WhiteElo "1852"]
[BlackElo "1940"]
[Annotator "NA"]
[PlyCount "130"]
[EventDate "2019.08.16"]
[EventType "swiss"]
[EventCountry "BLR"]
[SourceTitle "playchess.com"]
[Source "ChessBase"]
[SourceQuality "1"]
[TimeControl "600+5"]

1. e4 {[%emt 0:00:00]} d5 {[%emt 0:00:00]} 2. e5 {[%emt 0:00:19]} c5 {[%emt 0:00:04]} 3. c3 {[%emt 0:00:03]} Nc6 {[%emt 0:00:05]} 4. Nf3 {[%emt 0:00:03]} Bg4 {[%emt 0:00:12]} 5. d4 {[%emt 0:00:17]} e6 {[%emt 0:00:04]} 6. Be2 {[%emt 0:00:02]} Qb6 {[%emt 0:00:20]} 7. Nbd2 {[%emt 0:00:27]} cxd4 {[%emt 0:00:36]} 8. cxd4 {[%emt 0:00:01]} Nge7 {[%emt 0:00:10] B22: Sicilian: 2 c3} (8... Bb4 9. O-O Nge7 10. Nb3 Nf5 11. Be3 O-O 12. Rc1 Rac8 13. h3 Bxf3 14. Bxf3 Be7 15. Bg4 Nxe3 16. fxe3 {½-½ (27) Gremmer,D (1762)-Lehmann,S (1990) Germany 2018}) 9. h3 {[%emt 0:00:07]} Bxf3 {[%emt 0:00:09]} 10. Nxf3 {[%emt 0:00:02]} Nf5 {[%emt 0:00:09]} 11. O-O {[%emt 0:00:08]} Nfxd4 {[%emt 0:00:47]} 12. Nxd4 {[%emt 0:00:03]} Qxd4 $146 {[%emt 0:00:02]} ({Predecessor:} 12... Nxd4 13. Be3 Nxe2+ 14. Qxe2 Bc5 15. Bxc5 Qxc5 16. Rac1 {0-1 (38) Cameanii,V-Pitre,H Vancouver 2005}) 13. Qb3 {[%emt 0:00:07]} Qb6 {[%emt 0:00:38]} 14. Qa4 {[%emt 0:02:05]} Qb4 {[%emt 0:01:17]} 15. Qxb4 {[%emt 0:00:06]} Bxb4 {[%emt 0:00:05]} 16. a3 {[%emt 0:00:02]} Be7 {[%emt 0:00:13]} 17. Bf4 {[%emt 0:00:10]} O-O {[%emt 0:00:10]} 18. Bd3 {[%emt 0:00:17]} f6 {[%emt 0:00:37]} 19. exf6 {[%emt 0:00:18]} Bxf6 {[%emt 0:00:04]} 20. Be3 {[%emt 0:00:11]} e5 {[%emt 0:00:44]} ({Black should play} 20... a6 $17 21. Rfd1 Rfc8) 21. Bf5 {[%emt 0:00:08]} Rfe8 {[%emt 0:00:19]} 22. Bc5 {[%emt 0:00:09]} Rad8 {[%emt 0:00:06]} 23. Rad1 {[%emt 0:00:08]} e4 {[%emt 0:00:25]} 24. Rfe1 {[%emt 0:00:20]} b6 {[%emt 0:01:05]} 25. Be3 {[%emt 0:00:07]} g6 {[%emt 0:00:33]} 26. Bg4 {[%emt 0:00:04]} d4 {[%emt 0:00:04]} 27. Bh6 {[%emt 0:00:08]} d3 {[%emt 0:00:34]} 28. Rd2 {[%emt 0:00:35]} Nd4 $19 {[%emt 0:00:27]} 29. Bd1 {[%emt 0:00:04]} g5 {[%emt 0:00:49]} 30. h4 gxh4 {[%emt 0:00:01]} 31. Re3 {[%emt 0:00:46]} Nf5 {[%emt 0:00:19]} 32. Bf4 {[%emt 0:00:10]} Nxe3 {[%emt 0:00:02]} 33. fxe3 {[%emt 0:00:03]} Rc8 {[%emt 0:00:13]} 34. Bb3+ {[%emt 0:00:02]} Kh8 {[%emt 0:00:02]} 35. Rf2 {[%emt 0:00:08]} Rc1+ {[%emt 0:00:09]} 36. Kh2 {[%emt 0:00:01]} Be5 {[%emt 0:00:09]} 37. Bxe5+ {[%emt 0:00:01]} Rxe5 {[%emt 0:00:01]} 38. Rf8+ {[%emt 0:00:01]} Kg7 {[%emt 0:00:01]} 39. Rg8+ {[%emt 0:00:03]} Kh6 40. Rg4 {[%emt 0:00:06]} d2 {[%emt 0:00:10]} 41. Rxh4+ {[%emt 0:00:03]} Kg5 {[%emt 0:00:05]} 42. Rxh7 {[%emt 0:00:03]} d1=Q {[%emt 0:00:02]} 43. Bxd1 {[%emt 0:00:01]} Rxd1 {[%emt 0:00:01]} 44. Rxa7 {[%emt 0:00:03]} Rd3 {[%emt 0:00:03]} 45. Rb7 {[%emt 0:00:02]} Rb5 {[%emt 0:00:07]} 46. Re7 {[%emt 0:00:04]} Rxe3 {[%emt 0:00:02]} 47. b4 {[%emt 0:00:01]} Re1 {[%emt 0:00:03]} 48. Kg3 {[%emt 0:00:01]} e3 {[%emt 0:00:02]} 49. Re4 {[%emt 0:00:03]} Kf5 {[%emt 0:00:14]} 50. Re8 {[%emt 0:00:05]} Re5 {[%emt 0:00:05]} 51. Rf8+ {[%emt 0:00:02]} Ke4 {[%emt 0:00:02]} 52. Rd8 {[%emt 0:00:03]} Rg5+ {[%emt 0:00:02]} 53. Kh2 {[%emt 0:00:04]} e2 {[%emt 0:00:05]} 54. Re8+ {[%emt 0:00:03]} Kf4 {[%emt 0:00:03]} 55. g3+ {[%emt 0:00:01]} Kg4 {[%emt 0:00:08]} 56. Re4+ {[%emt 0:00:02]} Kf5 {[%emt 0:00:03]} 57. Re3 {[%emt 0:00:01]} Kf6 {[%emt 0:00:05]} 58. Kg2 {[%emt 0:00:01]} Re5 {[%emt 0:00:02]} 59. Rf3+ {[%emt 0:00:01]} Rf5 {[%emt 0:00:04]} 60. Re3 {[%emt 0:00:01]} Rff1 {[%emt 0:00:03]} 61. a4 {[%emt 0:00:05]} Rg1+ {[%emt 0:00:13]} 62. Kh3 {[%emt 0:00:08]} Rh1+ {[%emt 0:00:08]} 63. Kg4 {[%emt 0:00:02]} Rh2 {[%emt 0:00:03]} 64. Kf3 {[%emt 0:00:05]} Rf1+ {[%emt 0:00:03]} 65. Kg4 {[%emt 0:00:01]} e1=Q {[%emt 0:00:04]} 0-1